Workbook

Sheet Sheet1
C3: f(x)=x^3の数値積分
J4: 表
C5: 下限(a) | D5: 上限(b) | E5: 分割数(n) | F5: Δx=(b-a)/n | H5: k | I5: x_k=a+kΔx | J5: f(x_k)=x_k*x_k*x_k | K5: S | L5: 積分値=x_k^4/4 | M5: 誤差
C6: 0 | D6: 1 | E6: 100 | F6: =(D6-C6)/E6 -> 0.01 | H6: 0 | I6: =$C$6+$F$6*H6 -> 0 | J6: =I6*I6*I6 -> 0 | K6: =J6 -> 0 | M6: =L6-K6 -> 0
H7: =H6+1 -> 1 | I7: =$C$6+($D$6-$C$6)/$E$6*H7 -> 0.01 | J7: =I7*I7*I7 -> 1e-06 | K7: =K6+J7*$F$6 -> 1e-08 | L7: =J7*J7*J7*J7/4 -> 2.5e-25 | M7: =L7-K7 -> -1e-08
H8: =H7+1 -> 2 | I8: 0.02 | J8: 8e-06 | K8: =K7+J8*$F$6 -> 9e-08 | L8: =J8*J8*J8*J8/4 -> 1.024e-21 | M8: -9e-08
H9: 3 | I9: 0.03 | J9: 2.7e-05 | K9: =K8+J9*$F$6 -> 3.6e-07 | L9: 1.3286025e-19 | M9: -3.6e-07
H10: 4 | I10: 0.04 | J10: 6.4e-05 | K10: 1e-06 | L10: 4.194304e-18 | M10: -1e-06
H11: 5 | I11: 0.05 | J11: 0.000125 | K11: 2.25e-06 | L11: 6.103515625e-17 | M11: -2.25e-06
H12: 6 | I12: 0.06 | J12: 0.000216 | K12: 4.41e-06 | L12: 5.44195584e-16 | M12: -4.409999999e-06
H13: 7 | I13: 0.07 | J13: 0.000343 | K13: 7.84e-06 | L13: 3.4603218e-15 | M13: -7.839999997e-06
H14: 8 | I14: 0.08 | J14: 0.000512 | K14: 1.296e-05 | L14: 1.717986918e-14 | M14: -1.295999998e-05
H15: 9 | I15: 0.09 | J15: 0.000729 | K15: 2.025e-05 | L15: 7.060738412e-14 | M15: -2.024999993e-05
H16: 10 | I16: 0.1 | J16: 0.001 | K16: 3.025e-05 | L16: 2.5e-13 | M16: -3.024999975e-05
H17: 11 | I17: 0.11 | J17: 0.001331 | K17: 4.356e-05 | L17: 7.846070942e-13 | M17: -4.355999922e-05
H18: 12 | I18: 0.12 | J18: 0.001728 | K18: 6.084e-05 | L18: 2.229025112e-12 | M18: -6.083999777e-05
H19: 13 | I19: 0.13 | J19: 0.002197 | K19: 8.281e-05 | L19: 5.824521281e-12 | M19: -8.280999418e-05
H20: 14 | I20: 0.14 | J20: 0.002744 | K20: 0.00011025 | L20: 1.417347809e-11 | M20: -0.0001102499858
H21: 15 | I21: 0.15 | J21: 0.003375 | K21: 0.000144 | L21: 3.243658447e-11 | M21: -0.0001439999676
H22: 16 | I22: 0.16 | J22: 0.004096 | K22: 0.00018496 | L22: 7.036874418e-11 | M22: -0.0001849599296
H23: 17 | I23: 0.17 | J23: 0.004913 | K23: 0.00023409 | L23: 1.456555593e-10 | M23: -0.0002340898543
H24: 18 | I24: 0.18 | J24: 0.005832 | K24: 0.00029241 | L24: 2.892078454e-10 | M24: -0.0002924097108
H25: 19 | I25: 0.19 | J25: 0.006859 | K25: 0.000361 | L25: 5.533287298e-10 | M25: -0.0003609994467
H26: 20 | I26: 0.2 | J26: 0.008 | K26: 0.000441 | L26: 1.024e-09 | M26: -0.000440998976
H27: 21 | I27: 0.21 | J27: 0.009261 | K27: 0.00053361 | L27: 1.838956878e-09 | M27: -0.000533608161
H28: 22 | I28: 0.22 | J28: 0.010648 | K28: 0.00064009 | L28: 3.213750658e-09 | M28: -0.0006400867862
H29: 23 | I29: 0.23 | J29: 0.012167 | K29: 0.00076176 | L29: 5.478656108e-09 | M29: -0.0007617545213
H30: 24 | I30: 0.24 | J30: 0.013824 | K30: 0.0009 | L30: 9.130086859e-09 | M30: -0.0008999908699
H31: 25 | I31: 0.25 | J31: 0.015625 | K31: 0.00105625 | L31: 1.490116119e-08 | M31: -0.001056235099
H32: 26 | I32: 0.26 | J32: 0.017576 | K32: 0.00123201 | L32: 2.385723917e-08 | M32: -0.001231986143
H33: 27 | I33: 0.27 | J33: 0.019683 | K33: 0.00142884 | L33: 3.752365882e-08 | M33: -0.001428802476
H34: 28 | I34: 0.28 | J34: 0.021952 | K34: 0.00164836 | L34: 5.805456627e-08 | M34: -0.001648301945
H35: 29 | I35: 0.29 | J35: 0.024389 | K35: 0.00189225 | L35: 8.84536958e-08 | M35: -0.001892161546
H36: 30 | I36: 0.3 | J36: 0.027 | K36: 0.00216225 | L36: 1.3286025e-07 | M36: -0.00216211714
H37: 31 | I37: 0.31 | J37: 0.029791 | K37: 0.00246016 | L37: 1.969156959e-07 | M37: -0.002459963084
H38: 32 | I38: 0.32 | J38: 0.032768 | K38: 0.00278784 | L38: 2.882303762e-07 | M38: -0.00278755177
H39: 33 | I39: 0.33 | J39: 0.035937 | K39: 0.00314721 | L39: 4.169723787e-07 | M39: -0.003146793028
H40: 34 | I40: 0.34 | J40: 0.039304 | K40: 0.00354025 | L40: 5.966051709e-07 | M40: -0.003539653395
H41: 35 | I41: 0.35 | J41: 0.042875 | K41: 0.003969 | L41: 8.44805127e-07 | M41: -0.003968155195
H42: 36 | I42: 0.36 | J42: 0.046656 | K42: 0.00443556 | L42: 1.184595335e-06 | M42: -0.004434375405
H43: 37 | I43: 0.37 | J43: 0.050653 | K43: 0.00494209 | L43: 1.645738001e-06 | M43: -0.004940444262
H44: 38 | I44: 0.38 | J44: 0.054872 | K44: 0.00549081 | L44: 2.266434477e-06 | M44: -0.005488543566
H45: 39 | I45: 0.39 | J45: 0.059319 | K45: 0.006084 | L45: 3.095389414e-06 | M45: -0.006080904611
H46: 40 | I46: 0.4 | J46: 0.064 | K46: 0.006724 | L46: 4.194304e-06 | M46: -0.006719805696
H47: 41 | I47: 0.41 | J47: 0.068921 | K47: 0.00741321 | L47: 5.640872575e-06 | M47: -0.007407569127
H48: 42 | I48: 0.42 | J48: 0.074088 | K48: 0.00815409 | L48: 7.532367372e-06 | M48: -0.008146557633
H49: 43 | I49: 0.43 | J49: 0.079507 | K49: 0.00894916 | L49: 9.989907699e-06 | M49: -0.008939170092
H50: 44 | I50: 0.44 | J50: 0.085184 | K50: 0.009801 | L50: 1.316352269e-05 | M50: -0.009787836477
H51: 45 | I51: 0.45 | J51: 0.091125 | K51: 0.01071225 | L51: 1.723813089e-05 | M51: -0.01069501187
H52: 46 | I52: 0.46 | J52: 0.097336 | K52: 0.01168561 | L52: 2.244057542e-05 | M52: -0.01166316942
H53: 47 | I53: 0.47 | J53: 0.103823 | K53: 0.01272384 | L53: 2.904787078e-05 | M53: -0.01269479213
H54: 48 | I54: 0.48 | J54: 0.110592 | K54: 0.01382976 | L54: 3.739683577e-05 | M54: -0.01379236316
H55: 49 | I55: 0.49 | J55: 0.117649 | K55: 0.01500625 | L55: 4.789530785e-05 | M55: -0.01495835469
H56: 50 | I56: 0.5 | J56: 0.125 | K56: 0.01625625 | L56: 6.103515625e-05 | M56: -0.01619521484
H57: 51 | I57: 0.51 | J57: 0.132651 | K57: 0.01758276 | L57: 7.740733609e-05 | M57: -0.01750535266
H58: 52 | I58: 0.52 | J58: 0.140608 | K58: 0.01898884 | L58: 9.771925162e-05 | M58: -0.01889112075
H59: 53 | I59: 0.53 | J59: 0.148877 | K59: 0.02047761 | L59: 0.0001228147261 | M59: -0.02035479527
H60: 54 | I60: 0.54 | J60: 0.157464 | K60: 0.02205225 | L60: 0.0001536969065 | M60: -0.02189855309
H61: 55 | I61: 0.55 | J61: 0.166375 | K61: 0.023716 | L61: 0.0001915544664 | M61: -0.02352444553
H62: 56 | I62: 0.56 | J62: 0.175616 | K62: 0.02547216 | L62: 0.0002377915035 | M62: -0.0252343685
H63: 57 | I63: 0.57 | J63: 0.185193 | K63: 0.02732409 | L63: 0.0002940615735 | M63: -0.02703002843
H64: 58 | I64: 0.58 | J64: 0.195112 | K64: 0.02927521 | L64: 0.000362306338 | M64: -0.02891290366
H65: 59 | I65: 0.59 | J65: 0.205379 | K65: 0.031329 | L65: 0.0004447993546 | M65: -0.03088420065
H66: 60 | I66: 0.6 | J66: 0.216 | K66: 0.033489 | L66: 0.000544195584 | M66: -0.03294480442
H67: 61 | I67: 0.61 | J67: 0.226981 | K67: 0.03575881 | L67: 0.0006635872436 | M67: -0.03509522276
H68: 62 | I68: 0.62 | J68: 0.238328 | K68: 0.03814209 | L68: 0.0008065666906 | M68: -0.03733552331
H69: 63 | I69: 0.63 | J69: 0.250047 | K69: 0.04064256 | L69: 0.0009772970821 | M69: -0.03966526292
H70: 64 | I70: 0.64 | J70: 0.262144 | K70: 0.043264 | L70: 0.001180591621 | M70: -0.04208340838
H71: 65 | I71: =$C$6+($D$6-$C$6)/$E$6*H71 -> 0.65 | J71: =I71*I71*I71 -> 0.274625 | K71: 0.04601025 | L71: 0.001422002266 | M71: =L71-K71 -> -0.04458824773
H72: =H71+1 -> 66 | I72: 0.66 | J72: 0.287496 | K72: =K71+J72*$F$6 -> 0.04888521 | L72: =J72*J72*J72*J72/4 -> 0.001707918863 | M72: -0.04717729114
H73: 67 | I73: 0.67 | J73: 0.300763 | K73: 0.05189284 | L73: 0.002045679726 | M73: -0.04984716027
H74: 68 | I74: 0.68 | J74: 0.314432 | K74: 0.05503716 | L74: 0.00244369478 | M74: -0.05259346522
H75: 69 | I75: 0.69 | J75: 0.328509 | K75: 0.05832225 | L75: 0.002911582481 | M75: -0.05541066752
H76: 70 | I76: 0.7 | J76: 0.343 | K76: 0.06175225 | L76: 0.0034603218 | M76: -0.0582919282
H77: 71 | I77: 0.71 | J77: 0.357911 | K77: 0.06533136 | L77: 0.004102420685 | M77: -0.06122893931
H78: 72 | I78: 0.72 | J78: 0.373248 | K78: 0.06906384 | L78: 0.00485210249 | M78: -0.06421173751
H79: 73 | I79: 0.73 | J79: 0.389017 | K79: 0.07295401 | L79: 0.005725512012 | M79: -0.06722849799
H80: 74 | I80: 0.74 | J80: 0.405224 | K80: 0.07700625 | L80: 0.006740942854 | M80: -0.07026530715
H81: 75 | I81: 0.75 | J81: 0.421875 | K81: 0.081225 | L81: 0.007919088006 | M81: -0.07330591199
H82: 76 | I82: 0.76 | J82: 0.438976 | K82: 0.08561476 | L82: 0.009283315618 | M82: -0.07633144438
H83: 77 | I83: 0.77 | J83: 0.456533 | K83: 0.09018009 | L83: 0.01085997213 | M83: -0.07932011787
H84: 78 | I84: 0.78 | J84: 0.474552 | K84: 0.09492561 | L84: 0.01267871504 | M84: -0.08224689496
H85: 79 | I85: 0.79 | J85: 0.493039 | K85: 0.099856 | L85: 0.01477287776 | M85: -0.08508312224
H86: 80 | I86: 0.8 | J86: 0.512 | K86: 0.104976 | L86: 0.01717986918 | M86: -0.08779613082
H87: 81 | I87: 0.81 | J87: 0.531441 | K87: 0.11029041 | L87: 0.01994161077 | M87: -0.09034879923
H88: 82 | I88: 0.82 | J88: 0.551368 | K88: 0.11580409 | L88: 0.02310501407 | M88: -0.09269907593
H89: 83 | I89: 0.83 | J89: 0.571787 | K89: 0.12152196 | L89: 0.02672250193 | M89: -0.09479945807
H90: 84 | I90: 0.84 | J90: 0.592704 | K90: 0.127449 | L90: 0.03085257675 | M90: -0.09659642325
H91: 85 | I91: 0.85 | J91: 0.614125 | K91: 0.13359025 | L91: 0.03556043928 | M91: -0.09802981072
H92: 86 | I92: 0.86 | J92: 0.636056 | K92: 0.13995081 | L92: 0.04091866194 | M92: -0.09903214806
H93: 87 | I93: 0.87 | J93: 0.658503 | K93: 0.14653584 | L93: 0.04700792055 | M93: -0.09952791945
H94: 88 | I94: 0.88 | J94: 0.681472 | K94: 0.15335056 | L94: 0.05391778896 | M94: -0.09943277104
H95: 89 | I95: 0.89 | J95: 0.704969 | K95: 0.16040025 | L95: 0.06174760089 | M95: -0.09865264911
H96: 90 | I96: 0.9 | J96: 0.729 | K96: 0.16769025 | L96: 0.07060738412 | M96: -0.09708286588
H97: 91 | I97: 0.91 | J97: 0.753571 | K97: 0.17522596 | L97: 0.08061887185 | M97: -0.09460708815
H98: 92 | I98: 0.92 | J98: 0.778688 | K98: 0.18301284 | L98: 0.09191659691 | M98: -0.09109624309
H99: 93 | I99: 0.93 | J99: 0.804357 | K99: 0.19105641 | L99: 0.1046490744 | M99: -0.08640733563
H100: 94 | I100: 0.94 | J100: 0.830584 | K100: 0.19936225 | L100: 0.1189800787 | M100: -0.0803821713
H101: 95 | I101: 0.95 | J101: 0.857375 | K101: 0.207936 | L101: 0.1350900219 | M101: -0.07284597808
H102: 96 | I102: 0.96 | J102: 0.884736 | K102: 0.21678336 | L102: 0.1531774393 | M102: -0.06360592067
H103: 97 | I103: 0.97 | J103: 0.912673 | K103: 0.22591009 | L103: 0.1734605902 | M103: -0.05244949975
H104: 98 | I104: 0.98 | J104: 0.941192 | K104: 0.23532201 | L104: 0.1961791809 | M104: -0.03914282907
H105: 99 | I105: 0.99 | J105: 0.970299 | K105: =K104+J105*$F$6 -> 0.245025 | L105: 0.2215962179 | M105: -0.02342878207
H106: 100 | I106: =$C$6+($D$6-$C$6)/$E$6*H106 -> 1 | J106: 1 | K106: =K105+J106*$F$6 -> 0.255025 | L106: 0.25 | M106: -0.005025
